[Event "Titled Tuesday Blitz April 11 Late 2023"]
[White "Akhmetov, Ayan"]
[Black "Osmonbekov, Talaibek"]
[WhiteFideId "13703706"]
[BlackFideId "2017253"]
[WhiteElo "2398"]
[BlackElo "2135"]
[Result "1-0"]
[Round "04"]
[TimeControl "180+2"]
[Date "2023.04.11"]
[WhiteClock "0:00:11"]
[BlackClock "0:00:01"]

1. Nf3 {[%clk 0:02:56]}  f5 {[%clk 0:02:59]} 2. g3 {[%clk 0:02:55]}  Nf6 {[%clk 0:02:59]} 3. Bg2 {[%clk 0:02:56]}  Nc6 {[%clk 0:02:56]} 4. d4 {[%clk 0:02:54]}  e6 {[%clk 0:02:56]} 5. O-O {[%clk 0:02:53]}  d5 {[%clk 0:02:54]} 6. c4 {[%clk 0:02:54]}  Be7 {[%clk 0:02:54]} 7. Nc3 {[%clk 0:02:47]}  O-O {[%clk 0:02:54]} 8. Bf4 {[%clk 0:02:45]}  Bd7 {[%clk 0:02:49]} 9. Rc1 {[%clk 0:02:36]}  Bd6 {[%clk 0:02:41]} 10. Bxd6 {[%clk 0:02:24]}  cxd6 {[%clk 0:02:40]} 11. cxd5 {[%clk 0:02:24]}  exd5 {[%clk 0:02:40]} 12. e3 {[%clk 0:02:20]}  Ne7 {[%clk 0:02:33]} 13. Ne1 {[%clk 0:02:17]}  Qb6 {[%clk 0:02:28]} 14. Nd3 {[%clk 0:02:16]}  Rac8 {[%clk 0:02:24]} 15. Nf4 {[%clk 0:02:14]}  Bc6 {[%clk 0:01:36]} 16. Qb3 {[%clk 0:01:52]}  Qxb3 {[%clk 0:01:32]} 17. axb3 {[%clk 0:01:53]}  Rfe8 {[%clk 0:01:16]} 18. h4 {[%clk 0:01:37]}  g6 {[%clk 0:01:15]} 19. Ra1 {[%clk 0:01:26]}  a6 {[%clk 0:01:13]} 20. Ra5 {[%clk 0:01:26]}  Kf7 {[%clk 0:01:04]} 21. b4 {[%clk 0:00:58]}  h6 {[%clk 0:00:50]} 22. b5 {[%clk 0:00:54]}  axb5 {[%clk 0:00:46]} 23. Nxb5 {[%clk 0:00:55]}  Red8 {[%clk 0:00:35]} 24. Nc3 {[%clk 0:00:53]}  g5 {[%clk 0:00:27]} 25. hxg5 {[%clk 0:00:54]}  hxg5 {[%clk 0:00:27]} 26. Nfxd5 {[%clk 0:00:52]}  Nfxd5 {[%clk 0:00:23]} 27. Nxd5 {[%clk 0:00:50]}  Nxd5 {[%clk 0:00:17]} 28. Bxd5+ {[%clk 0:00:51]}  Bxd5 {[%clk 0:00:17]} 29. Rxd5 {[%clk 0:00:52]}  Ke6 {[%clk 0:00:17]} 30. Rb5 {[%clk 0:00:52]}  Rd7 {[%clk 0:00:17]} 31. Ra1 {[%clk 0:00:47]}  Rc2 {[%clk 0:00:17]} 32. Ra3 {[%clk 0:00:42]}  g4 {[%clk 0:00:16]} 33. Rab3 {[%clk 0:00:41]}  Rcc7 {[%clk 0:00:15]} 34. Kf1 {[%clk 0:00:34]}  Kf6 {[%clk 0:00:15]} 35. Ke2 {[%clk 0:00:31]}  Ke6 {[%clk 0:00:16]} 36. Rc3 {[%clk 0:00:30]}  Rxc3 {[%clk 0:00:13]} 37. bxc3 {[%clk 0:00:31]}  Rc7 {[%clk 0:00:13]} 38. Kd3 {[%clk 0:00:31]}  d5 {[%clk 0:00:13]} 39. Rb6+ {[%clk 0:00:30]}  Ke7 {[%clk 0:00:13]} 40. Rg6 {[%clk 0:00:29]}  Rd7 {[%clk 0:00:12]} 41. Rh6 {[%clk 0:00:27]}  Rc7 {[%clk 0:00:10]} 42. Rh7+ {[%clk 0:00:19]}  Kd6 {[%clk 0:00:10]} 43. Rh8 {[%clk 0:00:15]}  Ke6 {[%clk 0:00:04]} 44. Re8+ {[%clk 0:00:15]}  Kf6 {[%clk 0:00:03]} 45. Re5 {[%clk 0:00:15]}  Rd7 {[%clk 0:00:02]} 46. Re8 {[%clk 0:00:14]}  Rc7 {[%clk 0:00:01]} 47. Rb8 {[%clk 0:00:13]}  Ke6 {[%clk 0:00:01]} 48. Ra8 {[%clk 0:00:11]}  Kf6 {[%clk 0:00:01]} 49. Ra5 {[%clk 0:00:11]}  Ke6 {[%clk 0:00:01]} 50. Ra4 {[%clk 0:00:10]}  Kd6 {[%clk 0:00:01]} 51. Rb4 {[%clk 0:00:11]}  Ke6 {[%clk 0:00:01]} 52. Rb6+ {[%clk 0:00:11]}  Ke7 {[%clk 0:00:01]} 53. Kc2 {[%clk 0:00:11]} 1-0


[Site "https://www.chess.com"]

[Event "Titled Tuesday Blitz April 11 Late 2023"]
[White "Minko, Dmitry"]
[Black "Sieciechowicz, Marcin"]
[WhiteFideId "24188468"]
[BlackFideId "1130170"]
[WhiteElo "2147"]
[BlackElo "2302"]
[Result "0-1"]
[Round "04"]
[TimeControl "180+2"]
[Date "2023.04.11"]
[WhiteClock "0:00:02"]
[BlackClock "0:00:42"]

1. e4 {[%clk 0:03:00]}  c5 {[%clk 0:02:58]} 2. Nf3 {[%clk 0:03:01]}  d6 {[%clk 0:02:59]} 3. d4 {[%clk 0:03:01]}  cxd4 {[%clk 0:03:00]} 4. Nxd4 {[%clk 0:03:02]}  Nf6 {[%clk 0:03:00]} 5. Nc3 {[%clk 0:03:03]}  a6 {[%clk 0:03:01]} 6. Be3 {[%clk 0:03:03]}  e5 {[%clk 0:03:00]} 7. Nb3 {[%clk 0:03:03]}  Be6 {[%clk 0:02:58]} 8. f3 {[%clk 0:03:03]}  Be7 {[%clk 0:02:54]} 9. Qd2 {[%clk 0:03:03]}  O-O {[%clk 0:02:54]} 10. O-O-O {[%clk 0:03:02]}  a5 {[%clk 0:02:54]} 11. Kb1 {[%clk 0:03:02]}  a4 {[%clk 0:02:52]} 12. Nc1 {[%clk 0:03:02]}  a3 {[%clk 0:02:52]} 13. b3 {[%clk 0:03:02]}  Nc6 {[%clk 0:02:49]} 14. g4 {[%clk 0:03:02]}  Rc8 {[%clk 0:02:39]} 15. h4 {[%clk 0:02:59]}  Nb4 {[%clk 0:02:36]} 16. Bd3 {[%clk 0:02:36]}  d5 {[%clk 0:02:32]} 17. g5 {[%clk 0:01:52]}  d4 {[%clk 0:02:31]} 18. gxf6 {[%clk 0:01:52]}  Bxf6 {[%clk 0:02:25]} 19. Nd5 {[%clk 0:01:26]}  Nxd5 {[%clk 0:02:20]} 20. exd5 {[%clk 0:01:25]}  Bxd5 {[%clk 0:02:21]} 21. Bg5 {[%clk 0:01:17]}  Bxf3 {[%clk 0:02:19]} 22. Bxf6 {[%clk 0:01:18]}  Qxf6 {[%clk 0:02:14]} 23. Rdf1 {[%clk 0:01:18]}  Qc6 {[%clk 0:02:12]} 24. Rhg1 {[%clk 0:01:14]}  e4 {[%clk 0:02:11]} 25. Bc4 {[%clk 0:01:09]}  b5 {[%clk 0:02:07]} 26. Qg5 {[%clk 0:01:09]}  g6 {[%clk 0:02:06]} 27. Qxb5 {[%clk 0:01:09]}  Qf6 {[%clk 0:01:56]} 28. Qg5 {[%clk 0:00:45]}  Qg7 {[%clk 0:01:50]} 29. Nd3 {[%clk 0:00:10]}  exd3 {[%clk 0:01:50]} 30. Rxf3 {[%clk 0:00:09]}  dxc2+ {[%clk 0:01:50]} 31. Kxc2 {[%clk 0:00:08]}  d3+ {[%clk 0:01:51]} 32. Rxd3 {[%clk 0:00:05]}  Qb2+ {[%clk 0:01:51]} 33. Kd1 {[%clk 0:00:05]}  Qxa2 {[%clk 0:01:51]} 34. Qe3 {[%clk 0:00:03]}  Qb2 {[%clk 0:01:46]} 35. Rd2 {[%clk 0:00:03]}  Rcd8 {[%clk 0:01:43]} 36. Ke2 {[%clk 0:00:02]}  Rxd2+ {[%clk 0:01:39]} 37. Qxd2 {[%clk 0:00:03]}  Qe5+ {[%clk 0:01:39]} 38. Qe3 {[%clk 0:00:03]}  Qh5+ {[%clk 0:01:39]} 39. Kf2 {[%clk 0:00:03]}  Qxh4+ {[%clk 0:01:36]} 40. Qg3 {[%clk 0:00:04]}  Qd4+ {[%clk 0:01:36]} 41. Qe3 {[%clk 0:00:04]}  Qb2+ {[%clk 0:01:33]} 42. Qe2 {[%clk 0:00:04]}  Qf6+ {[%clk 0:01:31]} 43. Qf3 {[%clk 0:00:05]}  Qg7 {[%clk 0:01:31]} 44. Rh1 {[%clk 0:00:04]}  a2 {[%clk 0:01:31]} 45. Qd1 {[%clk 0:00:03]}  Qf6+ {[%clk 0:01:30]} 46. Kg2 {[%clk 0:00:03]}  Qg5+ {[%clk 0:01:27]} 47. Kf2 {[%clk 0:00:03]}  Rd8 {[%clk 0:01:24]} 48. Qe2 {[%clk 0:00:02]}  Qf6+ {[%clk 0:01:23]} 49. Qf3 {[%clk 0:00:02]}  a1=Q {[%clk 0:01:02]} 50. Rxa1 {[%clk 0:00:02]}  Qxa1 {[%clk 0:01:03]} 51. Qxf7+ {[%clk 0:00:02]}  Kh8 {[%clk 0:01:03]} 52. Qe7 {[%clk 0:00:02]}  Qd4+ {[%clk 0:01:01]} 53. Kf3 {[%clk 0:00:02]}  Qd6 {[%clk 0:00:52]} 54. Qe2 {[%clk 0:00:02]}  Rf8+ {[%clk 0:00:51]} 55. Kg2 {[%clk 0:00:02]}  Qf6 {[%clk 0:00:51]} 56. Qe3 {[%clk 0:00:02]}  Kg7 {[%clk 0:00:48]} 57. Qa7+ {[%clk 0:00:02]}  Kh6 {[%clk 0:00:47]} 58. Qe3+ {[%clk 0:00:03]}  Qg5+ {[%clk 0:00:47]} 59. Qxg5+ {[%clk 0:00:02]}  Kxg5 {[%clk 0:00:48]} 60. b4 {[%clk 0:00:02]}  Rb8 {[%clk 0:00:48]} 61. b5 {[%clk 0:00:03]}  Kf4 {[%clk 0:00:49]} 62. Be2 {[%clk 0:00:03]}  g5 {[%clk 0:00:48]} 63. Bd3 {[%clk 0:00:03]}  h5 {[%clk 0:00:48]} 64. Kh3 {[%clk 0:00:03]}  Rd8 {[%clk 0:00:45]} 65. Be2 {[%clk 0:00:03]}  g4+ {[%clk 0:00:45]} 66. Kh4 {[%clk 0:00:04]}  Rd2 {[%clk 0:00:45]} 67. b6 {[%clk 0:00:03]}  Rxe2 {[%clk 0:00:44]} 68. Kxh5 {[%clk 0:00:04]}  Rb2 {[%clk 0:00:43]} 69. Kh4 {[%clk 0:00:02]}  Rxb6 {[%clk 0:00:42]} 70. Kh5 {[%clk 0:00:01]}  g3 {[%clk 0:00:42]} 71. Kh4 {[%clk 0:00:02]}  Rh6# {[%clk 0:00:42]} 0-1


[Site "https://www.chess.com"]

[Event "Titled Tuesday Blitz April 11 Late 2023"]
[White "Manzone, Alessandro"]
[Black "Baches Garcia, Guillermo"]
[WhiteFideId "112488"]
[BlackFideId "2209764"]
[WhiteElo "2255"]
[BlackElo "2334"]
[Result "1/2-1/2"]
[Round "04"]
[TimeControl "180+2"]
[Date "2023.04.11"]
[WhiteClock "0:00:06"]
[BlackClock "0:00:03"]

1. d4 {[%clk 0:03:00]}  Nf6 {[%clk 0:02:59]} 2. c4 {[%clk 0:03:01]}  e6 {[%clk 0:03:00]} 3. Nc3 {[%clk 0:03:01]}  d5 {[%clk 0:03:00]} 4. cxd5 {[%clk 0:03:00]}  Nxd5 {[%clk 0:03:01]} 5. e3 {[%clk 0:02:59]}  c5 {[%clk 0:03:00]} 6. Bc4 {[%clk 0:02:59]}  cxd4 {[%clk 0:02:56]} 7. exd4 {[%clk 0:02:59]}  Nxc3 {[%clk 0:02:51]} 8. bxc3 {[%clk 0:02:58]}  Qc7 {[%clk 0:02:48]} 9. Qd3 {[%clk 0:02:55]}  Bd6 {[%clk 0:02:40]} 10. Nf3 {[%clk 0:02:55]}  Nd7 {[%clk 0:02:37]} 11. Bd2 {[%clk 0:02:52]}  b6 {[%clk 0:02:36]} 12. O-O {[%clk 0:02:50]}  Bb7 {[%clk 0:02:35]} 13. h3 {[%clk 0:02:44]}  O-O {[%clk 0:02:26]} 14. Bb3 {[%clk 0:02:36]}  Bf4 {[%clk 0:02:16]} 15. Rfe1 {[%clk 0:02:29]}  Bxf3 {[%clk 0:02:09]} 16. Bxf4 {[%clk 0:02:23]}  Qxf4 {[%clk 0:02:04]} 17. Qxf3 {[%clk 0:02:23]}  Qxf3 {[%clk 0:02:01]} 18. gxf3 {[%clk 0:02:24]}  Rac8 {[%clk 0:01:58]} 19. c4 {[%clk 0:02:22]}  Rfd8 {[%clk 0:01:56]} 20. Rad1 {[%clk 0:02:19]}  Kf8 {[%clk 0:01:47]} 21. Re2 {[%clk 0:02:12]}  Nf6 {[%clk 0:01:33]} 22. a4 {[%clk 0:02:09]}  Rd6 {[%clk 0:01:27]} 23. Red2 {[%clk 0:02:07]}  Ke7 {[%clk 0:01:24]} 24. Kf1 {[%clk 0:02:07]}  Nh5 {[%clk 0:01:11]} 25. Ke2 {[%clk 0:02:06]}  Nf4+ {[%clk 0:01:08]} 26. Ke3 {[%clk 0:02:04]}  g5 {[%clk 0:01:04]} 27. Rg1 {[%clk 0:01:55]}  h6 {[%clk 0:00:50]} 28. h4 {[%clk 0:01:51]}  Kf6 {[%clk 0:00:42]} 29. hxg5+ {[%clk 0:01:34]}  hxg5 {[%clk 0:00:43]} 30. Rh1 {[%clk 0:01:26]}  Rcd8 {[%clk 0:00:42]} 31. Ke4 {[%clk 0:01:07]}  Ng6 {[%clk 0:00:29]} 32. a5 {[%clk 0:00:55]}  R6d7 {[%clk 0:00:23]} 33. axb6 {[%clk 0:00:52]}  axb6 {[%clk 0:00:24]} 34. Ra1 {[%clk 0:00:51]}  Ne7 {[%clk 0:00:19]} 35. Ra6 {[%clk 0:00:29]}  Rd6 {[%clk 0:00:19]} 36. Ba4 {[%clk 0:00:22]}  Nf5 {[%clk 0:00:19]} 37. d5 {[%clk 0:00:17]}  exd5+ {[%clk 0:00:16]} 38. Rxd5 {[%clk 0:00:17]}  Rxd5 {[%clk 0:00:15]} 39. cxd5 {[%clk 0:00:17]}  Nd6+ {[%clk 0:00:14]} 40. Kd4 {[%clk 0:00:16]}  Rb8 {[%clk 0:00:14]} 41. Bc6 {[%clk 0:00:15]}  Nf5+ {[%clk 0:00:09]} 42. Kc4 {[%clk 0:00:14]}  Nd6+ {[%clk 0:00:09]} 43. Kb4 {[%clk 0:00:15]}  Ke5 {[%clk 0:00:10]} 44. Ra7 {[%clk 0:00:14]}  f5 {[%clk 0:00:10]} 45. Re7+ {[%clk 0:00:14]}  Kd4 {[%clk 0:00:10]} 46. Re6 {[%clk 0:00:15]}  Nc4 {[%clk 0:00:10]} 47. d6 {[%clk 0:00:14]}  Rd8 {[%clk 0:00:07]} 48. d7 {[%clk 0:00:15]}  Ne5 {[%clk 0:00:08]} 49. Bb5 {[%clk 0:00:14]}  Kd5 {[%clk 0:00:07]} 50. Rxb6 {[%clk 0:00:14]}  Nxd7 {[%clk 0:00:07]} 51. Rg6 {[%clk 0:00:14]}  Ne5 {[%clk 0:00:07]} 52. Rxg5 {[%clk 0:00:14]}  Nxf3 {[%clk 0:00:07]} 53. Rxf5+ {[%clk 0:00:14]}  Ke4 {[%clk 0:00:07]} 54. Rc5 {[%clk 0:00:12]}  Rd4+ {[%clk 0:00:07]} 55. Ka5 {[%clk 0:00:11]}  Nd2 {[%clk 0:00:07]} 56. Kb6 {[%clk 0:00:11]}  Nb3 {[%clk 0:00:05]} 57. Rh5 {[%clk 0:00:09]}  Nd2 {[%clk 0:00:05]} 58. Rh4+ {[%clk 0:00:08]}  Ke5 {[%clk 0:00:05]} 59. Rh5+ {[%clk 0:00:09]}  Ke4 {[%clk 0:00:05]} 60. Bc6+ {[%clk 0:00:09]}  Kf4 {[%clk 0:00:06]} 61. Rh8 {[%clk 0:00:08]}  Rb4+ {[%clk 0:00:04]} 62. Kc5 {[%clk 0:00:08]}  Rb2 {[%clk 0:00:04]} 63. Rf8+ {[%clk 0:00:08]}  Kg5 {[%clk 0:00:04]} 64. f4+ {[%clk 0:00:08]}  Kg6 {[%clk 0:00:04]} 65. f5+ {[%clk 0:00:08]}  Kg7 {[%clk 0:00:04]} 66. Rd8 {[%clk 0:00:09]}  Nb3+ {[%clk 0:00:04]} 67. Kb6 {[%clk 0:00:07]}  Rf2 {[%clk 0:00:04]} 68. Bd7 {[%clk 0:00:05]}  Nd2 {[%clk 0:00:04]} 69. Kc7 {[%clk 0:00:05]}  Ne4 {[%clk 0:00:04]} 70. Be6 {[%clk 0:00:05]}  Nf6 {[%clk 0:00:04]} 71. Rd4 {[%clk 0:00:04]}  Rc2+ {[%clk 0:00:04]} 72. Kd6 {[%clk 0:00:04]}  Rb2 {[%clk 0:00:04]} 73. Ke5 {[%clk 0:00:04]}  Rb5+ {[%clk 0:00:03]} 74. Kf4 {[%clk 0:00:05]}  Rb8 {[%clk 0:00:03]} 75. Kg5 {[%clk 0:00:05]}  Nh7+ {[%clk 0:00:03]} 76. Kf4 {[%clk 0:00:05]}  Rb7 {[%clk 0:00:03]} 77. Rc4 {[%clk 0:00:05]}  Ra7 {[%clk 0:00:03]} 78. Rc5 {[%clk 0:00:05]}  Nf6 {[%clk 0:00:03]} 79. Ke5 {[%clk 0:00:05]}  Ne8 {[%clk 0:00:03]} 80. Rc8 {[%clk 0:00:05]}  Nf6 {[%clk 0:00:03]} 81. Rd8 {[%clk 0:00:05]}  Ra5+ {[%clk 0:00:03]} 82. Kf4 {[%clk 0:00:05]}  Ra4+ {[%clk 0:00:03]} 83. Ke5 {[%clk 0:00:06]}  Re4+ {[%clk 0:00:03]} 84. Kd6 {[%clk 0:00:06]}  Rd4+ {[%clk 0:00:04]} 85. Ke7 {[%clk 0:00:07]}  Rxd8 {[%clk 0:00:04]} 86. Kxd8 {[%clk 0:00:08]}  Ng4 {[%clk 0:00:05]} 87. Ke7 {[%clk 0:00:08]}  Nf6 {[%clk 0:00:05]} 88. Bc4 {[%clk 0:00:08]}  Ng4 {[%clk 0:00:05]} 89. Kd6 {[%clk 0:00:08]}  Nf6 {[%clk 0:00:05]} 90. Ke5 {[%clk 0:00:09]}  Ng4+ {[%clk 0:00:05]} 91. Kf4 {[%clk 0:00:10]}  Nf6 {[%clk 0:00:06]} 92. Bd3 {[%clk 0:00:09]}  Nd7 {[%clk 0:00:05]} 93. Kg5 {[%clk 0:00:09]}  Nf6 {[%clk 0:00:05]} 94. Bc2 {[%clk 0:00:09]}  Nd5 {[%clk 0:00:05]} 95. Bd1 {[%clk 0:00:09]}  Nf6 {[%clk 0:00:05]} 96. Bf3 {[%clk 0:00:09]}  Nd7 {[%clk 0:00:05]} 97. Kf4 {[%clk 0:00:09]}  Kf6 {[%clk 0:00:04]} 98. Bc6 {[%clk 0:00:08]}  Nc5 {[%clk 0:00:04]} 99. Bd5 {[%clk 0:00:08]}  Na4 {[%clk 0:00:04]} 100. Be6 {[%clk 0:00:07]}  Nb6 {[%clk 0:00:04]} 101. Ke4 {[%clk 0:00:06]}  Na4 {[%clk 0:00:03]} 102. Kd4 {[%clk 0:00:06]}  Nb2 {[%clk 0:00:04]} 103. Ke3 {[%clk 0:00:05]}  Na4 {[%clk 0:00:03]} 104. Kd4 {[%clk 0:00:05]}  Nb2 {[%clk 0:00:03]} 105. Kc3 {[%clk 0:00:06]}  Nd1+ {[%clk 0:00:03]} 106. Kd3 {[%clk 0:00:06]}  Nf2+ {[%clk 0:00:04]} 107. Ke3 {[%clk 0:00:06]}  Nh3 {[%clk 0:00:04]} 108. Ke4 {[%clk 0:00:05]}  Ng5+ {[%clk 0:00:04]} 109. Kd5 {[%clk 0:00:06]}  Nh7 {[%clk 0:00:04]} 110. Bg8 {[%clk 0:00:06]}  Kxf5 {[%clk 0:00:03]} 1/2-1/2


[Site "https://www.chess.com"]

[Event "Titled Tuesday Blitz April 11 Late 2023"]
[White "Kavutskiy, Konstantin"]
[Black "Petrova, Irina"]
[WhiteFideId "2026384"]
[BlackFideId "14124122"]
[WhiteElo "2323"]
[BlackElo "2084"]
[Result "1-0"]
[Round "04"]
[TimeControl "180+2"]
[Date "2023.04.11"]
[WhiteClock "0:00:39"]
[BlackClock "0:00:15"]

1. Nf3 {[%clk 0:03:00]}  d6 {[%clk 0:03:00]} 2. e4 {[%clk 0:02:57]}  g6 {[%clk 0:03:00]} 3. d4 {[%clk 0:02:57]}  Bg7 {[%clk 0:03:00]} 4. Nc3 {[%clk 0:02:57]}  Nf6 {[%clk 0:02:59]} 5. Be3 {[%clk 0:02:57]}  O-O {[%clk 0:02:58]} 6. Qd2 {[%clk 0:02:56]}  Bg4 {[%clk 0:02:57]} 7. Bd3 {[%clk 0:02:53]}  Nc6 {[%clk 0:02:56]} 8. d5 {[%clk 0:02:45]}  Bxf3 {[%clk 0:02:54]} 9. gxf3 {[%clk 0:02:45]}  Ne5 {[%clk 0:02:54]} 10. Be2 {[%clk 0:02:45]}  c6 {[%clk 0:02:54]} 11. dxc6 {[%clk 0:02:20]}  bxc6 {[%clk 0:02:51]} 12. O-O-O {[%clk 0:02:18]}  Qa5 {[%clk 0:02:48]} 13. a3 {[%clk 0:02:15]}  Rfc8 {[%clk 0:02:42]} 14. h4 {[%clk 0:02:14]}  Rab8 {[%clk 0:02:30]} 15. h5 {[%clk 0:01:55]}  Nxh5 {[%clk 0:02:29]} 16. f4 {[%clk 0:01:48]}  Nd7 {[%clk 0:02:22]} 17. Bxh5 {[%clk 0:01:46]}  gxh5 {[%clk 0:02:14]} 18. Bd4 {[%clk 0:01:34]}  e5 {[%clk 0:02:01]} 19. fxe5 {[%clk 0:01:30]}  Nxe5 {[%clk 0:02:01]} 20. Rdg1 {[%clk 0:01:27]}  Ng6 {[%clk 0:01:57]} 21. Bxg7 {[%clk 0:01:25]}  Kxg7 {[%clk 0:01:58]} 22. Rg5 {[%clk 0:01:21]}  Qb6 {[%clk 0:01:57]} 23. b3 {[%clk 0:01:12]}  Qa6 {[%clk 0:01:42]} 24. a4 {[%clk 0:01:07]}  d5 {[%clk 0:01:36]} 25. Rgxh5 {[%clk 0:01:05]}  Rh8 {[%clk 0:01:32]} 26. exd5 {[%clk 0:01:02]}  cxd5 {[%clk 0:01:29]} 27. Qd4+ {[%clk 0:01:00]}  Kg8 {[%clk 0:01:26]} 28. Nxd5 {[%clk 0:00:56]}  Qc6 {[%clk 0:00:23]} 29. Nf6+ {[%clk 0:00:43]}  Kf8 {[%clk 0:00:23]} 30. Nd7+ {[%clk 0:00:41]}  Kg8 {[%clk 0:00:15]} 31. Nxb8 {[%clk 0:00:39]} 1-0


[Site "https://www.chess.com"]

[Event "Titled Tuesday Blitz April 11 Late 2023"]
[White "Ribeiro, Matheus Mendes Domingues"]
[Black "Yeritsyan, Hayk"]
[WhiteFideId "324226923"]
[BlackFideId "13307320"]
[WhiteElo "2168"]
[BlackElo "2241"]
[Result "0-1"]
[Round "04"]
[TimeControl "180+2"]
[Date "2023.04.11"]
[WhiteClock "0:00:07"]
[BlackClock "0:00:28"]

1. c4 {[%clk 0:03:00]}  c6 {[%clk 0:02:59]} 2. Nf3 {[%clk 0:03:00]}  d5 {[%clk 0:03:00]} 3. e3 {[%clk 0:03:00]}  Nf6 {[%clk 0:03:00]} 4. Nc3 {[%clk 0:02:59]}  e6 {[%clk 0:03:00]} 5. b3 {[%clk 0:02:59]}  Bd6 {[%clk 0:03:00]} 6. Bb2 {[%clk 0:02:55]}  Nbd7 {[%clk 0:03:00]} 7. Qc2 {[%clk 0:02:54]}  Qe7 {[%clk 0:03:00]} 8. Rg1 {[%clk 0:02:50]}  Ne5 {[%clk 0:02:52]} 9. Be2 {[%clk 0:02:42]}  O-O {[%clk 0:02:50]} 10. Nxe5 {[%clk 0:02:37]}  Bxe5 {[%clk 0:02:50]} 11. f4 {[%clk 0:02:38]}  Bc7 {[%clk 0:02:49]} 12. g4 {[%clk 0:02:38]}  dxc4 {[%clk 0:02:46]} 13. bxc4 {[%clk 0:02:36]}  Nd7 {[%clk 0:02:40]} 14. g5 {[%clk 0:02:35]}  e5 {[%clk 0:02:40]} 15. Ne4 {[%clk 0:02:30]}  Kh8 {[%clk 0:02:22]} 16. f5 {[%clk 0:02:08]}  f6 {[%clk 0:02:14]} 17. gxf6 {[%clk 0:02:02]}  Nxf6 {[%clk 0:02:14]} 18. Ng5 {[%clk 0:01:49]}  h6 {[%clk 0:02:13]} 19. Ne6 {[%clk 0:01:44]}  Bxe6 {[%clk 0:02:13]} 20. fxe6 {[%clk 0:01:45]}  Qxe6 {[%clk 0:02:13]} 21. Qg6 {[%clk 0:01:46]}  Qf7 {[%clk 0:02:08]} 22. Qf5 {[%clk 0:01:29]}  Qd7 {[%clk 0:01:59]} 23. Qg6 {[%clk 0:01:15]}  Qf7 {[%clk 0:01:56]} 24. Qf5 {[%clk 0:01:14]}  Qd7 {[%clk 0:01:48]} 25. Qg6 {[%clk 0:00:52]}  Rad8 {[%clk 0:01:26]} 26. O-O-O {[%clk 0:00:50]}  Qf7 {[%clk 0:01:26]} 27. Qf5 {[%clk 0:00:48]}  Qd7 {[%clk 0:01:26]} 28. Qg6 {[%clk 0:00:48]}  Qf7 {[%clk 0:01:11]} 29. Qxf7 {[%clk 0:00:44]}  Rxf7 {[%clk 0:01:11]} 30. Rdf1 {[%clk 0:00:45]}  Rfd7 {[%clk 0:01:09]} 31. d3 {[%clk 0:00:45]}  Bb6 {[%clk 0:01:07]} 32. Rg3 {[%clk 0:00:37]}  Re7 {[%clk 0:00:55]} 33. Rf5 {[%clk 0:00:30]}  Bc7 {[%clk 0:00:54]} 34. Rg6 {[%clk 0:00:27]}  Bb6 {[%clk 0:00:50]} 35. Bxe5 {[%clk 0:00:24]}  Bxe3+ {[%clk 0:00:47]} 36. Kc2 {[%clk 0:00:25]}  Bd4 {[%clk 0:00:43]} 37. Bxd4 {[%clk 0:00:17]}  Rxd4 {[%clk 0:00:44]} 38. Rf2 {[%clk 0:00:14]}  Rd8 {[%clk 0:00:41]} 39. Rgg2 {[%clk 0:00:15]}  Rde8 {[%clk 0:00:41]} 40. Bf3 {[%clk 0:00:14]}  c5 {[%clk 0:00:41]} 41. Re2 {[%clk 0:00:12]}  Rxe2+ {[%clk 0:00:40]} 42. Rxe2 {[%clk 0:00:12]}  Rxe2+ {[%clk 0:00:39]} 43. Bxe2 {[%clk 0:00:13]}  Kg8 {[%clk 0:00:40]} 44. Kc3 {[%clk 0:00:12]}  Kf7 {[%clk 0:00:39]} 45. Bf3 {[%clk 0:00:13]}  b6 {[%clk 0:00:39]} 46. d4 {[%clk 0:00:13]}  Ke6 {[%clk 0:00:36]} 47. d5+ {[%clk 0:00:07]}  Ke5 {[%clk 0:00:36]} 48. Be2 {[%clk 0:00:07]}  Ne8 {[%clk 0:00:35]} 49. Kb3 {[%clk 0:00:07]}  Nd6 {[%clk 0:00:35]} 50. Kc3 {[%clk 0:00:07]}  Ke4 {[%clk 0:00:34]} 51. Bf1 {[%clk 0:00:05]}  g5 {[%clk 0:00:33]} 52. Be2 {[%clk 0:00:05]}  Ke3 {[%clk 0:00:33]} 53. Bh5 {[%clk 0:00:05]}  Kf4 {[%clk 0:00:33]} 54. Kd3 {[%clk 0:00:04]}  g4 {[%clk 0:00:33]} 55. Bg6 {[%clk 0:00:03]}  Kg5 {[%clk 0:00:33]} 56. Be4 {[%clk 0:00:04]}  h5 {[%clk 0:00:33]} 57. Bg2 {[%clk 0:00:04]}  Kf4 {[%clk 0:00:33]} 58. Bh1 {[%clk 0:00:04]}  h4 {[%clk 0:00:33]} 59. Bg2 {[%clk 0:00:03]}  g3 {[%clk 0:00:33]} 60. hxg3+ {[%clk 0:00:04]}  Kxg3 {[%clk 0:00:33]} 61. Bh1 {[%clk 0:00:03]}  Kf4 {[%clk 0:00:31]} 62. Bg2 {[%clk 0:00:04]}  a6 {[%clk 0:00:31]} 63. Bh1 {[%clk 0:00:04]}  b5 {[%clk 0:00:31]} 64. cxb5 {[%clk 0:00:04]}  axb5 {[%clk 0:00:32]} 65. Kc3 {[%clk 0:00:04]}  Kg3 {[%clk 0:00:31]} 66. Kb3 {[%clk 0:00:04]}  h3 {[%clk 0:00:30]} 67. a4 {[%clk 0:00:04]}  bxa4+ {[%clk 0:00:31]} 68. Kxa4 {[%clk 0:00:05]}  Kh2 {[%clk 0:00:30]} 69. Bf3 {[%clk 0:00:05]}  Kg1 {[%clk 0:00:31]} 70. Ka5 {[%clk 0:00:03]}  h2 {[%clk 0:00:29]} 71. Kb6 {[%clk 0:00:04]}  c4 {[%clk 0:00:30]} 72. Kc6 {[%clk 0:00:04]}  c3 {[%clk 0:00:30]} 73. Kxd6 {[%clk 0:00:04]}  c2 {[%clk 0:00:31]} 74. Ke7 {[%clk 0:00:04]}  c1=Q {[%clk 0:00:30]} 75. d6 {[%clk 0:00:03]}  Qf4 {[%clk 0:00:31]} 76. Bc6 {[%clk 0:00:03]}  Qe5+ {[%clk 0:00:30]} 77. Kd7 {[%clk 0:00:03]}  h1=Q {[%clk 0:00:29]} 78. Bxh1 {[%clk 0:00:03]}  Kxh1 {[%clk 0:00:30]} 79. Kc6 {[%clk 0:00:04]}  Qc3+ {[%clk 0:00:27]} 80. Kd7 {[%clk 0:00:04]}  Kg2 {[%clk 0:00:27]} 81. Ke7 {[%clk 0:00:05]}  Qe5+ {[%clk 0:00:27]} 82. Kd7 {[%clk 0:00:05]}  Kf3 {[%clk 0:00:27]} 83. Kc6 {[%clk 0:00:05]}  Qc3+ {[%clk 0:00:27]} 84. Kb7 {[%clk 0:00:06]}  Qb4+ {[%clk 0:00:27]} 85. Kc7 {[%clk 0:00:07]}  Qc5+ {[%clk 0:00:27]} 86. Kd7 {[%clk 0:00:06]}  Ke4 {[%clk 0:00:28]} 87. Ke6 {[%clk 0:00:07]}  Qe5+ {[%clk 0:00:28]} 88. Kd7 {[%clk 0:00:07]}  Kd5 {[%clk 0:00:28]} 0-1


[Site "https://www.chess.com"]